Workbook

Sheet Лист1
A1: Школа | C1: МБОУ "СОШ № 9" НМР РТ | F1: Согласование: | G1: должность | H1: Директор
A2: Типовое примерное меню приготавливаемых блюд | G2: фамилия | H2: А.И.Мухаметзянова
A3: Возрастная категория | E3: 7-11 лет | G3: дата | H3: 7 | I3: 11 | J3: 2025
H4: день | I4: месяц | J4: год
A5: Неделя | B5: День недели | C5: Прием пищи | D5: Раздел меню | E5: Блюда | F5: Вес блюда, г | G5: Белки | H5: Жиры | I5: Углеводы | J5: Калорийность | K5: № рецептуры | L5: Цена
A6: 2 | B6: 5 | C6: Завтрак | D6: фрукты | E6: Яблоки | F6: 100 | G6: 0.4 | H6: 0.4 | I6: 9.8 | J6: 47 | L6: 46.12
D7: гор.блюдо | E7: Каша ячневая молочная с маслом сливочным | F7: 153 | G7: 10.61 | H7: 13.83 | I7: 41.62 | J7: 331.89
D8: гор.напиток | E8: Какао с молоком | F8: 200 | G8: 4.08 | H8: 3.54 | I8: 2.61 | J8: 58.6
D9: хлеб бел. | E9: Батон нарезной | F9: 50 | G9: 3.75 | H9: 1.45 | I9: 25.7 | J9: 131
D12: итого | F12: =F6+F7+F8+F9 -> 503 | G12: =SUM(G6:G11) -> 18.84 | H12: =SUM(H6:H11) -> 19.22 | I12: =SUM(I6:I11) -> 79.73 | J12: =SUM(J6:J11) -> 568.49 | L12: =L6 -> 46.12
A13: =A6 -> 2 | B13: =B6 -> 5 | C13: Обед | D13: 1 блюдо | E13: Рассольник Ленинградский со сметаной | F13: 205 | G13: 9.94 | H13: 10.82 | I13: 15.56 | J13: 203.9 | L13: 89.90
D14: 2 блюдо | E14: Шницель куриный в томатном соусе | F14: 100 | G14: 10.09 | H14: 9.24 | I14: 12.14 | J14: 205.63
D15: напиток | E15: Компот из свежих яблок | F15: 200 | G15: 0.16 | H15: 0.16 | I15: 10.91 | J15: 46.6
D16: хлеб бел. | E16: Хлеб пшеничный | F16: 20 | G16: 1.52 | H16: 0.16 | I16: 9.84 | J16: 47
D17: хлеб черн. | E17: Хлеб ржаной | F17: 40 | G17: 2.64 | H17: 0.48 | I17: 15.84 | J17: 79.2
D18: гарнир | E18: Рис отварной | F18: 150 | G18: 3.32 | H18: 7 | I18: 52.2 | J18: 203
D21: итого | F21: =SUM(F13:F20) -> 715 | G21: =SUM(G13:G20) -> 27.67 | H21: =SUM(H13:H20) -> 27.86 | I21: =SUM(I13:I20) -> 116.49 | J21: =SUM(J13:J20) -> 785.33 | L21: =SUM(L13:L20) -> 89.90
A22: =A6 -> 2 | B22: =B6 -> 5 | C22: Итого за день: | F22: =F12+F21 -> 1218 | G22: =G12+G21 -> 46.51 | H22: =H12+H21 -> 47.08 | I22: =I12+I21 -> 196.22 | J22: =J12+J21 -> 1353.82 | L22: =L12+L21 -> 136.02
C23: Среднее значение за период: | F23: =(#REF!+#REF!+#REF!+#REF!+#REF!+#REF!+#REF!+#REF!+#REF!+F22)/(IF(#REF!=0,0,1)+IF(#REF!=0,0,1)+IF(#REF!=0,0,1)+IF(#REF!=0,0,1)+IF(#REF!=0,0,1)+IF(#REF!=0,0,1)+IF(#REF!=0,0,1)+IF(#REF!=0,0,1)+IF(#REF!=0,0,1)+IF(F22=0,0,1)) ->  | G23: =(#REF!+#REF!+#REF!+#REF!+#REF!+#REF!+#REF!+#REF!+#REF!+G22)/(IF(#REF!=0,0,1)+IF(#REF!=0,0,1)+IF(#REF!=0,0,1)+IF(#REF!=0,0,1)+IF(#REF!=0,0,1)+IF(#REF!=0,0,1)+IF(#REF!=0,0,1)+IF(#REF!=0,0,1)+IF(#REF!=0,0,1)+IF(G22=0,0,1)) ->  | H23: =(#REF!+#REF!+#REF!+#REF!+#REF!+#REF!+#REF!+#REF!+#REF!+H22)/(IF(#REF!=0,0,1)+IF(#REF!=0,0,1)+IF(#REF!=0,0,1)+IF(#REF!=0,0,1)+IF(#REF!=0,0,1)+IF(#REF!=0,0,1)+IF(#REF!=0,0,1)+IF(#REF!=0,0,1)+IF(#REF!=0,0,1)+IF(H22=0,0,1)) ->  | I23: =(#REF!+#REF!+#REF!+#REF!+#REF!+#REF!+#REF!+#REF!+#REF!+I22)/(IF(#REF!=0,0,1)+IF(#REF!=0,0,1)+IF(#REF!=0,0,1)+IF(#REF!=0,0,1)+IF(#REF!=0,0,1)+IF(#REF!=0,0,1)+IF(#REF!=0,0,1)+IF(#REF!=0,0,1)+IF(#REF!=0,0,1)+IF(I22=0,0,1)) ->  | J23: =(#REF!+#REF!+#REF!+#REF!+#REF!+#REF!+#REF!+#REF!+#REF!+J22)/(IF(#REF!=0,0,1)+IF(#REF!=0,0,1)+IF(#REF!=0,0,1)+IF(#REF!=0,0,1)+IF(#REF!=0,0,1)+IF(#REF!=0,0,1)+IF(#REF!=0,0,1)+IF(#REF!=0,0,1)+IF(#REF!=0,0,1)+IF(J22=0,0,1)) ->  | L23: =(#REF!+#REF!+#REF!+#REF!+#REF!+#REF!+#REF!+#REF!+#REF!+L22)/(IF(#REF!=0,0,1)+IF(#REF!=0,0,1)+IF(#REF!=0,0,1)+IF(#REF!=0,0,1)+IF(#REF!=0,0,1)+IF(#REF!=0,0,1)+IF(#REF!=0,0,1)+IF(#REF!=0,0,1)+IF(#REF!=0,0,1)+IF(L22=0,0,1)) -> 
